fUSD/lending_fUSD_20260421
["ID","MTS","AMOUNT","RATE_DAILY","PERIOD"]
[420905396,1776703975811,-500.0,0.00014383,2]
[420905397,1776703975820,-215.47514417,0.00014383,2]
[420905398,1776703975830,-500.0,0.00014383,2]
[420905399,1776703975840,-166.66,0.00014384,2]
[420905400,1776703975850,-2000.0,0.0001441,2]
[420905401,1776703975860,-2000.0,0.0001441,2]
[420905402,1776703975870,-2000.0,0.0001441,2]
[420905403,1776703975879,-2000.0,0.0001441,2]
[420905404,1776703975889,-2000.0,0.0001441,2]
[420905405,1776703975899,-2000.0,0.0001441,2]
[420905406,1776703975908,-2000.0,0.0001441,2]
[420905407,1776703975918,-2000.0,0.0001441,2]
[420905408,1776703975928,-2000.0,0.0001441,2]
[420905409,1776703975937,-1879.0,0.0001441,2]
[420905410,1776703975947,-500.0,0.00014519,2]
[420905411,1776703975956,-500.0,0.00014519,2]
[420905412,1776703975966,-500.0,0.00014519,2]
[420905413,1776703975975,-500.0,0.00014519,2]
[420905414,1776703975984,-500.0,0.00014519,2]
[420905415,1776703975993,-200.0,0.0001452,2]
[420905416,1776703976002,-669.27883879,0.00014521,2]
[420905417,1776703976012,-1000.0,0.00014521,2]
[420905418,1776703976022,-168.0,0.00014576,2]
[420905419,1776703976032,-2000.0,0.00014624,2]
[420905420,1776703976042,-162.0,0.0001468,2]
[420905421,1776703976052,-3382.0,0.00014682,2]
[420905422,1776703976062,-1068.0,0.00014682,2]
[420905423,1776703976072,-400.657,0.00014682,2]
[420905424,1776703976081,-264.0,0.00014682,2]
[420905425,1776703976091,-416.0,0.00014682,2]
[420905426,1776703976100,-298.0,0.00014682,2]
[420905427,1776703976109,-500.0,0.00014794,2]
[420905428,1776703976119,-1500.0,0.00014795,2]
[420905429,1776703976128,-1500.0,0.00014795,2]
[420905430,1776703976137,-1087.71193276,0.00014795,2]
[420905431,1776703976147,-1500.0,0.00014795,2]
[420905432,1776703976157,-1368.90686776,0.00014795,2]
[420905433,1776703976167,-1527.53729409,0.00014795,2]
[420905434,1776703976176,-1500.0,0.00014795,2]
[420905435,1776703976186,-1500.0,0.00014795,2]
[420905436,1776703976196,-1500.0,0.00014795,2]
[420905437,1776703976206,-1086.51341743,0.00014795,2]
[420905438,1776703976215,-1500.0,0.00014795,2]
[420905439,1776703976225,-1500.0,0.00014795,2]
[420905440,1776703976235,-1427.01254008,0.00014795,2]
[420905441,1776703976245,-1500.0,0.00014795,2]
[420905442,1776703976255,-1158.32333232,0.00014795,2]
[420905443,1776703976265,-1500.0,0.00014795,2]
[420905444,1776703976275,-1500.0,0.00014795,2]
[420905445,1776703976284,-1500.0,0.00014795,2]
[420905446,1776703976294,-1500.0,0.00014795,2]
[420905447,1776703976303,-1500.0,0.00014795,2]
[420905448,1776703976313,-858.82720542,0.00014795,2]
[420905449,1776703976323,-1500.0,0.00014795,2]
[420905450,1776703976332,-1500.0,0.00014795,2]
[420905451,1776703976342,-150.0,0.00014801,2]
[420905452,1776703976352,-200.0,0.0001482,2]
[420905453,1776703976362,-3381.4906356,0.00014903,2]
[420905454,1776703976372,-2010.44185782,0.00014928,2]
[420905455,1776703976382,-9194.6094926,0.00014974,2]
[420905456,1776703976391,-300.0,0.00015,2]
[420905457,1776703976401,-504.0,0.00015029,3]
[420905458,1776703976411,-1500.0,0.00015068,2]
[420905459,1776703976421,-900.0,0.00015068,2]
[420905460,1776703976431,-800.0,0.00015068,2]
[420905461,1776703976441,-300.0,0.000151,2]
[420905462,1776703976451,-2675.56,0.000151,2]
[420905463,1776703976461,-200.0,0.0001512,2]
[420905464,1776703976471,-2017.72,0.000152,2]
[420905465,1776703976481,-168.0,0.00015237,2]
[420905466,1776703976491,-1690.97304325,0.00015242,2]
[420905467,1776703976501,-427.132425,0.00015288,7]
[420905468,1776703976510,-778.67,0.00015299,2]
[420905469,1776703976520,-1145.0,0.00015299,2]
[420905470,1776703976529,-668.22,0.00015299,2]
[420905471,1776703976539,-500.0,0.00015299,2]
[420905472,1776703976548,-500.0,0.00015299,2]
[420905473,1776703976559,-500.0,0.00015299,2]
[420905474,1776703976568,-140522.08,0.000153,2]
[420905475,1776703976578,-750.0,0.00015304,2]
[420905476,1776703976588,-750.0,0.00015304,2]
[420905477,1776703976598,-750.0,0.00015304,2]
[420905478,1776703976609,-750.0,0.00015304,2]
[420905479,1776703976624,-750.0,0.00015304,2]
[420905480,1776703976634,-750.0,0.00015304,2]
[420905481,1776703976644,-500.0,0.00015342,2]
[420905482,1776703976655,-500.0,0.00015342,2]
[420905483,1776703976665,-500.0,0.00015342,2]
[420905484,1776703976675,-500.0,0.00015342,2]
[420905485,1776703976685,-500.0,0.00015342,2]
[420905486,1776703976696,-2000.0,0.00015342,2]
[420905487,1776703976706,-972.17154373,0.00015342,2]
[420905488,1776703976716,-2000.0,0.00015342,2]
[420905489,1776703976727,-565.69628155,0.00015342,2]
[420905490,1776703976738,-2000.0,0.00015342,2]
[420905491,1776703976747,-2000.0,0.00015342,2]
[420905492,1776703976757,-2000.0,0.00015342,2]
[420905493,1776703976767,-2000.0,0.00015342,2]
[420905494,1776703976776,-2000.0,0.00015342,2]
[420905495,1776703976787,-2000.0,0.00015342,2]
[420905496,1776703976797,-1601.84899906,0.00015342,2]
[420905497,1776703976807,-2000.0,0.00015342,2]
[420905498,1776703976816,-2000.0,0.00015342,2]
[420905499,1776703976826,-2000.0,0.00015342,2]
[420905500,1776703976835,-2000.0,0.00015342,2]
[420905501,1776703976844,-2000.0,0.00015342,2]
[420905502,1776703976855,-4131.63,0.00015471,2]
[420905503,1776703976866,-1526.85,0.00015471,2]
[420905504,1776703976876,-941.87,0.00015471,2]
[420905505,1776703976887,-4000.0,0.00015507,2]
[420905506,1776703976897,-197.087248,0.00015526,2]
[420905507,1776703976907,-2000.0,0.00015616,2]
[420905508,1776703976916,-637.782156,0.00015633,7]
[420905509,1776703976925,-504.0,0.00015793,4]
[420905510,1776703976935,-778.67,0.0001589,2]
[420905511,1776703976944,-2000.0,0.0001589,2]
[420905512,1776703976954,-2500.0,0.0001589,2]
[420905513,1776703976965,-2000.0,0.0001589,2]
[420905514,1776703976975,-2272.17997118,0.0001589,2]
[420905515,1776703976985,-1781.03109167,0.0001589,2]
[420905516,1776703976994,-2500.0,0.0001589,2]
[420905517,1776703977004,-2500.0,0.0001589,2]
[420905518,1776703977014,-204.00242524,0.0001589,2]
[420905519,1776703977024,-2500.0,0.0001589,2]
[420905520,1776703977034,-1617.48130141,0.0001589,2]
[420905521,1776703977044,-2500.0,0.0001589,2]
[420905522,1776703977054,-2500.0,0.0001589,2]
[420905523,1776703977064,-2500.0,0.0001589,2]
[420905524,1776703977073,-2500.0,0.0001589,2]
[420905525,1776703977083,-4000.0,0.00015895,2]
[420905526,1776703977092,-150.0,0.000159,2]
[420905527,1776703977102,-150.0,0.000159,2]
[420905528,1776703977111,-150.0,0.000159,2]
[420905529,1776703977122,-311.0,0.00016,2]
[420905530,1776703977132,-200.0,0.00016,2]
[420905531,1776703977142,-150.0,0.00016115,2]
[420905532,1776703977152,-150.0,0.00016115,2]
[420905533,1776703977162,-150.0,0.00016115,2]
[420905534,1776703977172,-297.0,0.00016115,2]
[420905535,1776703977183,-9999.99,0.00016116,2]
[420905536,1776703977192,-1145.0,0.00016164,2]
[420905537,1776703977202,-668.22,0.00016164,2]
[420905538,1776703977212,-500.0,0.00016164,2]
[420905539,1776703977222,-500.0,0.00016164,2]
[420905540,1776703977232,-500.0,0.00016164,2]
[420905541,1776703977243,-2500.0,0.00016164,2]
[420905542,1776703977254,-1600.0,0.00016164,2]
[420905543,1776703977268,-636.66,0.0001617,2]
[420905544,1776703977278,-636.66,0.0001617,2]
[420905545,1776703977288,-636.66,0.0001617,2]
[420905546,1776703977298,-636.66,0.0001617,2]
[420905547,1776703977308,-636.66,0.0001617,2]
[420905548,1776703977317,-9413.08725186,0.00016217,11]
[420905549,1776703977327,-2000.0,0.00016248,3]
[420905550,1776703977337,-4000.0,0.00016282,2]
[420905551,1776703977347,-500.0,0.00016399,2]
[420905552,1776703977356,-500.0,0.00016399,2]
[420905553,1776703977366,-500.0,0.00016399,2]
[420905554,1776703977375,-500.0,0.00016399,2]
[420905555,1776703977385,-500.0,0.00016399,2]
[420905556,1776703977394,-1387.66,0.00016438,2]
[420905557,1776703977404,-2312.77,0.00016438,2]
[420905558,1776703977414,-6919.9,0.00016438,2]
[420905559,1776703977424,-900.0,0.00016438,2]
[420905560,1776703977434,-229.36,0.00016438,2]
[420905561,1776703977443,-150.0,0.00016438,2]
[420905562,1776703977452,-1000.0,0.00016438,2]
[420905563,1776703977463,-2288.2008942,0.00016438,2]
[420905564,1776703977472,-1304.52261048,0.00016438,2]
[420905565,1776703977482,-3000.0,0.00016438,2]
[420905566,1776703977492,-3000.0,0.00016438,2]
[420905567,1776703977944,-3000.0,0.00016438,2]
[420905568,1776703977954,-3000.0,0.00016438,2]
[420905569,1776703977964,-844.52055568,0.00016438,2]
[420905570,1776703977975,-400.0,0.0001647,2]
[420905571,1776703977984,-400.0,0.0001647,2]
[420905572,1776703977994,-300.0,0.0001647,2]
[420905573,1776703978003,-400.0,0.0001647,2]
[420905574,1776703978013,-300.71064335,0.0001647,2]
[420905575,1776703978023,-601.54629789,0.0001647,2]
[420905576,1776703978032,-500.0,0.00016497,2]
[420905577,1776703978042,-500.0,0.00016497,2]
[420905578,1776703978052,-500.0,0.00016497,2]
[420905579,1776703978061,-500.0,0.00016497,2]
[420905580,1776703978071,-500.0,0.00016497,2]
[420905581,1776703978081,-500.0,0.00016497,2]
[420905582,1776703978091,-500.0,0.00016497,2]
[420905583,1776703978100,-500.0,0.00016497,2]
[420905584,1776703978110,-500.0,0.00016497,2]
[420905585,1776703978119,-469.0,0.00016497,2]
[420905586,1776703978129,-328.23459601,0.000165,22]
[420905587,1776703978140,-150.0,0.000165,7]
[420905588,1776703978150,-156.4630492,0.000165,7]
[420905589,1776703978159,-1005.38,0.000165,2]
[420905590,1776703978169,-2675.56,0.000165,2]
[420905591,1776703978178,-152.0,0.000165,2]
[420905592,1776703978188,-152.0,0.000165,2]
[420905593,1776703978198,-152.0,0.000165,2]
[420905594,1776703978208,-152.0,0.000165,2]
[420905595,1776703978218,-152.0,0.000165,2]
[420905596,1776703978228,-152.0,0.000165,2]
[420905597,1776703978238,-153.0,0.000165,2]
[420905598,1776703978247,-152.0,0.000165,2]
[420905599,1776703978257,-152.0,0.000165,2]
[420905600,1776703978267,-159.74950035,0.000165,2]
[420905601,1776703978276,-152.0,0.000165,2]
[420905602,1776703978286,-152.0,0.000165,2]
[420905603,1776703978296,-152.0,0.000165,2]
[420905604,1776703978306,-152.0,0.000165,2]
[420905605,1776703978315,-152.0,0.000165,2]
[420905606,1776703978325,-240.0,0.000165,2]
[420905607,1776703978335,-150.0,0.000165,7]
[420905608,1776703978344,-504.0,0.00016557,4]
[420905609,1776703978354,-2130.51472509,0.0001657,24]
[420905610,1776703978364,-778.67,0.00016599,2]
[420905611,1776703978376,-1145.0,0.00016599,2]
[420905612,1776703978386,-668.22,0.00016599,2]
[420905613,1776703978396,-500.0,0.00016599,2]
[420905614,1776703978407,-140522.08,0.000166,2]
[420905615,1776703978416,-832.48,0.000166,2]
[420905616,1776703978426,-4425.76,0.000166,2]
[420905617,1776703978436,-4000.0,0.0001667,2]
[420905618,1776703978446,-2017.72,0.000167,2]
[420905619,1776703978456,-1000.0,0.00016712,2]
[420905620,1776703978466,-157.63542969,0.00016712,2]
[420905621,1776703978475,-150.0,0.00016712,2]
[420905622,1776703978485,-250.33434315,0.00016712,2]
[420905623,1776703978496,-150.0,0.00016712,2]
[420905624,1776703978506,-150.0,0.00016712,2]
[420905625,1776703978515,-234.21,0.00016712,2]
[420905626,1776703978525,-500.0,0.00016795,2]
[420905627,1776703978534,-194.0,0.00016866,2]
[420905628,1776703978544,-350.0,0.00016939,2]
[420905629,1776703978553,-350.0,0.00016939,2]
[420905630,1776703978563,-350.0,0.00016939,2]
[420905631,1776703978572,-350.0,0.00016939,2]
[420905632,1776703978582,-350.0,0.00016939,2]
[420905633,1776703978591,-275.0,0.00016939,2]
[420905634,1776703978601,-150.0,0.00016986,2]
[420905635,1776703978611,-3500.0,0.00016986,2]
[420905636,1776703978620,-2216.88311006,0.00016986,2]
[420905637,1776703978630,-615.12543913,0.00016986,2]
[420905638,1776703978640,-3500.0,0.00016986,2]
[420905639,1776703978649,-350.0,0.00017,2]
[420905640,1776703978659,-1160.08,0.00017019,2]
[420905641,1776703978668,-344.91,0.00017019,2]
[420905642,1776703978678,-4000.0,0.00017058,2]
[420905643,1776703978687,-168.0,0.00017092,2]
[420905644,1776703978696,-500.0,0.00017162,2]
[420905645,1776703978707,-500.0,0.00017162,2]
[420905646,1776703978716,-500.0,0.00017162,2]
[420905647,1776703978726,-500.0,0.00017162,2]
[420905648,1776703978735,-500.0,0.00017162,2]
[420905649,1776703978744,-500.0,0.00017162,2]
[420905650,1776703978754,-437.0,0.00017162,2]
[420905651,1776703978764,-2400.0,0.0001726,2]
[420905652,1776703978774,-168.0,0.00017281,2]
[420905653,1776703978783,-504.0,0.00017322,5]
[420905654,1776703978793,-1218.48987383,0.00017405,2]
[420905655,1776703978802,-150.0,0.00017405,2]
[420905656,1776703978812,-150.0,0.00017405,2]
[420905657,1776703978821,-150.0,0.00017405,2]
[420905658,1776703978831,-150.0,0.00017405,2]
[420905659,1776703978840,-150.0,0.00017405,2]
[420905660,1776703978850,-150.0,0.00017405,2]
[420905661,1776703978859,-291.0,0.00017405,2]
[420905662,1776703978868,-6919.9,0.00017489,2]
[420905663,1776703978878,-150.0,0.00017534,2]
[420905664,1776703978887,-4000.0,0.00017534,2]
[420905665,1776703978897,-4000.0,0.00017534,2]
[420905666,1776703978906,-186.0,0.00017625,2]
[420905667,1776703978916,-1781.863,0.00017682,2]
[420905668,1776703978925,-1068.0,0.00017682,2]
[420905669,1776703978935,-416.0,0.00017682,2]
[420905670,1776703978944,-832.48,0.000177,2]
[420905671,1776703978954,-4425.76,0.000177,2]
[420905672,1776703978964,-1387.66,0.00017808,2]
[420905673,1776703978973,-2312.77,0.00017808,2]
[420905674,1776703978983,-778.67,0.00017899,2]
[420905675,1776703978992,-10600.0,0.000179,6]
[420905676,1776703979001,-925.1,0.00018,2]
[420905677,1776703979011,-200.0,0.00018,2]
[420905678,1776703979020,-150.0,0.00018082,2]
[420905679,1776703979030,-4500.0,0.00018082,2]
[420905680,1776703979040,-4500.0,0.00018082,2]
[420905681,1776703979050,-504.0,0.00018086,6]
[420905682,1776703979060,-500.0,0.00018099,2]
[420905683,1776703979069,-500.0,0.00018099,2]
[420905684,1776703979079,-500.0,0.00018099,2]
[420905685,1776703979088,-500.0,0.00018099,2]
[420905686,1776703979098,-500.0,0.00018099,2]
[420905687,1776703979108,-1145.0,0.00018099,2]
[420905688,1776703979118,-668.22,0.00018099,2]
[420905689,1776703979127,-500.0,0.00018099,2]
[420905690,1776703979136,-2675.56,0.000181,2]
[420905691,1776703979146,-140522.08,0.000181,2]
[420905692,1776703979156,-1690.97304321,0.00018134,2]
[420905693,1776703979165,-89261.38,0.00018356,2]
[420905694,1776703979175,-1305.74542925,0.00018356,2]
[420905695,1776703979184,-158.16,0.00018447,2]
[420905696,1776703979195,-2017.72,0.000185,2]
[420905697,1776703979206,-184.06,0.000185,7]
[420905698,1776703979216,-2078.69,0.00018533,2]
[420905699,1776703979225,-1145.0,0.00018539,2]
[420905700,1776703979234,-668.22,0.00018539,2]
[420905701,1776703979243,-500.0,0.00018539,2]
[420905702,1776703979252,-6919.9,0.0001854,2]
[420905703,1776703979262,-150.0,0.0001863,2]
[420905704,1776703979284,-5000.0,0.0001863,2]
[420905705,1776703979295,-4006.89357387,0.0001863,2]
[420905706,1776703979305,-504.0,0.00018851,6]
[420905707,1776703979315,-832.48,0.00019,2]
[420905708,1776703979325,-4425.76,0.00019,2]
[420905709,1776703979335,-400.0,0.00019,2]
[420905710,1776703979345,-778.67,0.00019177,2]
[420905711,1776703979355,-170.722121,0.00019178,2]
[420905712,1776703979365,-281.0,0.00019178,2]
[420905713,1776703979375,-292.5,0.00019178,2]
[420905714,1776703979386,-400.0,0.00019178,2]
[420905715,1776703979395,-150.0,0.00019178,2]
[420905716,1776703979406,-174.22225156,0.00019178,2]
[420905717,1776703979417,-150.0,0.00019178,2]
[420905718,1776703979427,-5500.0,0.00019178,2]
[420905719,1776703979438,-925.1,0.0001937,2]
[420905720,1776703979448,-140522.08,0.000195,2]
[420905721,1776703979458,-3709.983177,0.00019514,3]
[420905722,1776703979468,-6919.9,0.00019592,2]
[420905723,1776703979478,-2675.56,0.000196,2]
[420905724,1776703979488,-504.0,0.00019615,7]
[420905725,1776703979498,-234.21,0.00019658,2]
[420905726,1776703979509,-5291.912054,0.00019726,3]
[420905727,1776703979519,-250.0,0.00019726,2]
[420905728,1776703979530,-2884.87793766,0.00019726,2]
[420905729,1776703979540,-250.0,0.00019726,2]
[420905730,1776703979551,-150.0,0.00019737,30]
[420905731,1776703979561,-500.0,0.00019799,2]
[420905732,1776703979571,-503.45888296,0.00019799,2]
[420905733,1776703979581,-500.0,0.00019799,2]
[420905734,1776703979591,-354.19770381,0.00019799,2]
[420905735,1776703979601,-500.0,0.00019799,2]
[420905736,1776703979611,-778.67,0.00019999,2]
[420905737,1776703979621,-1145.0,0.00019999,2]
[420905738,1776703979631,-668.22,0.00019999,2]
[420905739,1776703979641,-500.0,0.00019999,2]
[420905740,1776703979653,-104918.45047945,0.0002,2]
[420905741,1776703979663,-601.09108628,0.0002,2]
[420905742,1776703979673,-4376.0,0.0002,2]
[420905743,1776703979683,-2017.72,0.0002,2]
[420905744,1776703979693,-630.0,0.0002,2]
[420905745,1776703979703,-154.0,0.0002,2]
[420905746,1776703979713,-618.0,0.0002,2]
[420905747,1776703979722,-296.0,0.0002,2]
[420905748,1776703979732,-198.0,0.0002,2]
[420905749,1776703979743,-5947.0,0.0002,2]
[420905750,1776703979753,-200.0,0.0002,2]
[420905751,1776703979763,-350.0,0.00020274,2]
[420905752,1776703979773,-350.0,0.00020274,2]
[420905753,1776703979784,-832.48,0.000203,2]
[420905754,1776703979794,-4425.76,0.000203,7]
[420905755,1776703979803,-249.0,0.00020337,2]
[420905756,1776703979813,-504.0,0.00020379,8]
[420905757,1776703979824,-298.0,0.00020525,2]
[420905758,1776703979834,-21728.48,0.00020548,2]
[420905759,1776703979844,-1218.48987383,0.00020608,2]
[420905760,1776703979854,-6919.9,0.00020643,2]
[420905761,1776703979864,-843.0,0.00020682,2]
[420905762,1776703979873,-416.0,0.00020682,2]
[420905763,1776703979884,-384.0,0.00020756,2]
[420905764,1776703979896,-450.0,0.00020822,2]
[420905765,1776703979906,-450.0,0.00020822,2]
[420905766,1776703979917,-778.67,0.00020899,2]
[420905767,1776703979927,-1145.0,0.00020899,2]
[420905768,1776703979937,-668.22,0.00020899,2]
[420905769,1776703979947,-500.0,0.00020899,2]
[420905770,1776703979956,-140522.08,0.000209,2]
[420905771,1776703979966,-2675.56,0.00021,2]
[420905772,1776703979976,-630.0,0.00021,2]
[420905773,1776703979986,-450.0,0.00021,2]
[420905774,1776703979996,-154.0,0.00021,2]
[420905775,1776703980007,-618.0,0.00021,2]
[420905776,1776703980017,-296.0,0.00021,2]
[420905777,1776703980026,-198.0,0.00021,2]
[420905778,1776703980036,-1690.97304321,0.00021025,2]
[420905779,1776703980046,-504.0,0.00021144,8]
[420905780,1776703980056,-500.0,0.00021199,2]
[420905781,1776703980066,-500.0,0.00021199,2]
[420905782,1776703980076,-500.0,0.00021199,2]
[420905783,1776703980086,-550.0,0.0002137,2]
[420905784,1776703980096,-550.0,0.0002137,2]
[420905785,1776703980106,-832.48,0.000215,2]
[420905786,1776703980116,-4425.76,0.000215,7]
[420905787,1776703980126,-2017.72,0.000216,2]
[420905788,1776703980136,-155.08109936,0.0002165,2]
[420905789,1776703980146,-6919.9,0.00021694,2]
[420905790,1776703980155,-469.67,0.00021803,2]
[420905791,1776703980165,-469.67,0.00021803,2]
[420905792,1776703980176,-150.0,0.00021852,30]
[420905793,1776703980186,-504.0,0.00021908,9]
[420905794,1776703980196,-3063.62,0.00021918,2]
[420905795,1776703980205,-5000.0,0.00021918,2]
[420905796,1776703980215,-1000.89,0.00021918,2]
[420905797,1776703980224,-166.0,0.00021918,2]
[420905798,1776703980234,-166.0,0.00021918,2]
[420905799,1776703980244,-166.0,0.00021918,2]
[420905800,1776703980253,-166.0,0.00021918,2]
[420905801,1776703980263,-166.0,0.00021918,2]
[420905802,1776703980272,-166.0,0.00021918,2]
[420905803,1776703980282,-166.0,0.00021918,2]
[420905804,1776703980293,-166.0,0.00021918,2]
[420905805,1776703980302,-172.0,0.00021918,2]
[420905806,1776703980312,-650.0,0.00021918,2]
[420905807,1776703980322,-650.0,0.00021918,2]
[420905808,1776703980332,-800.25884367,0.00021918,10]
[420905809,1776703980348,-630.0,0.00022,2]
[420905810,1776703980359,-154.0,0.00022,2]
[420905811,1776703980370,-618.0,0.00022,2]
[420905812,1776703980379,-296.0,0.00022,2]
[420905813,1776703980390,-198.0,0.00022,2]
[420905814,1776703980400,-500.0,0.00022055,2]
[420905815,1776703980412,-750.0,0.00022466,2]
[420905816,1776703980423,-750.0,0.00022466,2]
[420905817,1776703980433,-234.21,0.00022603,2]
[420905818,1776703980443,-504.0,0.00022672,10]
[420905819,1776703980454,-6919.9,0.00022745,2]
[420905820,1776703980464,-209.99,0.00022746,2]
[420905821,1776703980475,-209.99,0.00022746,2]
[420905822,1776703980485,-209.99,0.00022746,2]
[420905823,1776703980495,-209.99,0.00022746,2]
[420905824,1776703980505,-209.99,0.00022746,2]
[420905825,1776703980515,-209.99,0.00022746,2]
[420905826,1776703980524,-209.99,0.00022748,2]
[420905827,1776703980535,-209.99,0.00022748,2]
[420905828,1776703980544,-209.99,0.00022748,2]
[420905829,1776703980554,-209.99,0.00022748,2]
[420905830,1776703980564,-209.99,0.00022748,2]
[420905831,1776703980574,-209.99,0.00022748,2]
[420905832,1776703980584,-209.99,0.00022748,2]
[420905833,1776703980594,-209.97,0.0002275,2]
[420905834,1776703980604,-209.99,0.0002275,2]
[420905835,1776703980614,-209.99,0.0002275,2]
[420905836,1776703980624,-209.99,0.0002275,2]
[420905837,1776703980634,-209.99,0.0002275,2]
[420905838,1776703980645,-209.99,0.0002275,2]
[420905839,1776703980655,-209.99,0.0002275,2]
[420905840,1776703980665,-2675.56,0.000228,7]
[420905841,1776703980675,-5800.0,0.00022881,2]
[420905842,1776703980685,-5800.0,0.0002289,2]
[420905843,1776703980695,-5800.0,0.00022898,2]
[420905844,1776703980704,-5800.0,0.00022907,2]
[420905845,1776703980714,-5800.0,0.00022915,2]
[420905846,1776703980724,-5800.0,0.00022924,2]
[420905847,1776703980734,-5800.0,0.00022932,2]
[420905848,1776703980744,-5800.0,0.00022941,2]
[420905849,1776703980755,-5800.0,0.00022949,2]
[420905850,1776703980765,-5800.0,0.00022958,2]
[420905851,1776703980775,-1145.0,0.00022965,2]
[420905852,1776703980786,-668.22,0.00022965,2]
[420905853,1776703980796,-500.0,0.00022965,2]
[420905854,1776703980806,-5800.0,0.00022966,2]
[420905855,1776703980817,-5800.0,0.00022975,2]
[420905856,1776703980827,-5800.0,0.00022983,2]
[420905857,1776703980837,-5800.0,0.00022991,2]
[420905858,1776703980847,-5800.0,0.00022992,2]
[420905859,1776703980857,-5800.0,0.00022999,2]
[420905860,1776703980868,-778.67,0.00022999,2]
[420905861,1776703980878,-140522.08,0.00023,7]
[420905862,1776703980888,-5800.0,0.00023,2]
[420905863,1776703980898,-630.0,0.00023,2]
[420905864,1776703980909,-500.0,0.00023,2]
[420905865,1776703980919,-154.0,0.00023,2]
[420905866,1776703980930,-618.0,0.00023,2]
[420905867,1776703980940,-296.0,0.00023,2]
[420905868,1776703980952,-198.0,0.00023,2]
[420905869,1776703980962,-222.48994188,0.00023014,2]
[420905870,1776703980972,-850.0,0.00023014,2]
[420905871,1776703980982,-500.0,0.00023099,2]
[420905872,1776703980992,-500.0,0.00023099,2]
[420905873,1776703981002,-500.0,0.00023099,2]
[420905874,1776703981012,-832.48,0.000231,7]
[420905875,1776703981022,-151.0,0.00023227,2]
[420905876,1776703981032,-4425.76,0.000233,7]
[420905877,1776703981042,-279.47,0.000233,14]
[420905878,1776703981053,-504.0,0.00023437,10]
[420905879,1776703981063,-950.0,0.00023562,2]
[420905880,1776703981073,-1145.0,0.00023681,2]
[420905881,1776703981083,-668.22,0.00023681,2]
[420905882,1776703981093,-500.0,0.00023681,2]
[420905883,1776703981103,-6919.9,0.00023796,2]
[420905884,1776703981113,-2017.72,0.000238,7]
[420905885,1776703981122,-1218.48987383,0.0002381,2]
[420905886,1776703981133,-1690.97304321,0.00023917,2]
[420905887,1776703981143,-150.0,0.00023967,30]
[420905888,1776703981154,-2000.0,0.00024,2]
[420905889,1776703981165,-5000.0,0.00024,15]
[420905890,1776703981175,-630.0,0.00024,2]
[420905891,1776703981185,-168.0,0.00024,2]
[420905892,1776703981195,-618.0,0.00024,2]
[420905893,1776703981204,-296.0,0.00024,2]
[420905894,1776703981214,-198.0,0.00024,2]
[420905895,1776703981224,-151.0,0.00024049,2]